[Event "*** Titled Tuesday Blitz"]
[Site "Chess.com"]
[Date "2020.11.10"]
[Round "9"]
[White "AttractiveMustard"]
[Black "Morshynska"]
[Result "1-0"]
[WhiteElo "2401"]
[BlackElo "2246"]
[TimeControl "180+1"]
[EndTime "11:53:24 PST"]
[Termination "AttractiveMustard won on time"]

1. e4 {[%clk 0:02:50.6]} 1... e5 {[%clk 0:02:59.5]} 2. Nf3 {[%clk 0:02:49.5]}
2... Nc6 {[%clk 0:03:00]} 3. Bc4 {[%clk 0:02:47]} 3... Nf6 {[%clk 0:02:58.2]} 4.
d3 {[%clk 0:02:46.1]} 4... Be7 {[%clk 0:02:56.3]} 5. O-O {[%clk 0:02:46]} 5...
O-O {[%clk 0:02:56.3]} 6. Re1 {[%clk 0:02:37.1]} 6... d6 {[%clk 0:02:53.5]} 7.
a4 {[%clk 0:02:36.6]} 7... Na5 {[%clk 0:02:51]} 8. Ba2 {[%clk 0:02:35.3]} 8...
c5 {[%clk 0:02:51.4]} 9. Nc3 {[%clk 0:02:35.1]} 9... Be6 {[%clk 0:02:48.3]} 10.
Bg5 {[%clk 0:02:29]} 10... Bxa2 {[%clk 0:02:46.4]} 11. Rxa2 {[%clk 0:02:26.8]}
11... Nc6 {[%clk 0:02:25.4]} 12. Bxf6 {[%clk 0:02:25.1]} 12... Bxf6 {[%clk
0:02:26.3]} 13. Nd5 {[%clk 0:02:25.5]} 13... Bg5 {[%clk 0:02:20.5]} 14. Ra1
{[%clk 0:02:14.7]} 14... f5 {[%clk 0:02:08]} 15. c3 {[%clk 0:02:05.4]} 15... Kh8
{[%clk 0:02:01]} 16. h3 {[%clk 0:01:59]} 16... Bh6 {[%clk 0:01:42]} 17. Nh2
{[%clk 0:01:39.5]} 17... Ne7 {[%clk 0:01:27.9]} 18. Nxe7 {[%clk 0:01:36.5]}
18... Qxe7 {[%clk 0:01:28.8]} 19. Qh5 {[%clk 0:01:34]} 19... Qg5 {[%clk
0:01:24.9]} 20. Qxg5 {[%clk 0:01:32.3]} 20... Bxg5 {[%clk 0:01:25.8]} 21. a5
{[%clk 0:01:15.8]} 21... Rf7 {[%clk 0:01:09.2]} 22. Re2 {[%clk 0:01:09.1]} 22...
Raf8 {[%clk 0:01:05]} 23. exf5 {[%clk 0:01:07.2]} 23... Rxf5 {[%clk 0:01:05.9]}
24. Nf1 {[%clk 0:01:07.1]} 24... Bf4 {[%clk 0:01:01.6]} 25. g3 {[%clk
0:01:01.7]} 25... Bg5 {[%clk 0:00:59.2]} 26. h4 {[%clk 0:00:56.4]} 26... Bd8
{[%clk 0:00:53.1]} 27. Ne3 {[%clk 0:00:51.9]} 27... Rf3 {[%clk 0:00:49.5]} 28.
Rd2 {[%clk 0:00:44.9]} 28... g5 {[%clk 0:00:48.1]} 29. h5 {[%clk 0:00:31.8]}
29... g4 {[%clk 0:00:35.9]} 30. Nxg4 {[%clk 0:00:27.3]} 30... Bg5 {[%clk
0:00:35]} 31. Rdd1 {[%clk 0:00:24.7]} 31... Re8 {[%clk 0:00:28.3]} 32. Ra4
{[%clk 0:00:23.3]} 32... d5 {[%clk 0:00:26.8]} 33. Kg2 {[%clk 0:00:22.1]} 33...
Rf5 {[%clk 0:00:26.3]} 34. Re1 {[%clk 0:00:20.6]} 34... Bd2 {[%clk 0:00:18.4]}
35. Re2 {[%clk 0:00:18.8]} 35... Bc1 {[%clk 0:00:18.6]} 36. c4 {[%clk
0:00:17.2]} 36... d4 {[%clk 0:00:16.3]} 37. Ra1 {[%clk 0:00:16.7]} 37... Bg5
{[%clk 0:00:15.3]} 38. Rae1 {[%clk 0:00:16.3]} 38... Bd8 {[%clk 0:00:14.8]} 39.
a6 {[%clk 0:00:12.6]} 39... bxa6 {[%clk 0:00:13.9]} 40. Rxe5 {[%clk 0:00:12.4]}
40... Rfxe5 {[%clk 0:00:12.7]} 41. Rxe5 {[%clk 0:00:13.3]} 41... Rxe5 {[%clk
0:00:12.3]} 42. Nxe5 {[%clk 0:00:13.3]} 42... Ba5 {[%clk 0:00:10.8]} 43. Kf3
{[%clk 0:00:11.4]} 43... Bb4 {[%clk 0:00:09.7]} 44. Ke4 {[%clk 0:00:11.1]} 44...
a5 {[%clk 0:00:09.7]} 45. b3 {[%clk 0:00:08]} 45... Kg7 {[%clk 0:00:09.3]} 46.
g4 {[%clk 0:00:07.2]} 46... Kf6 {[%clk 0:00:08.8]} 47. f4 {[%clk 0:00:07.1]}
47... h6 {[%clk 0:00:09.3]} 48. Nd7+ {[%clk 0:00:05.8]} 48... Ke7 {[%clk
0:00:09]} 49. Ne5 {[%clk 0:00:05.5]} 49... Kf6 {[%clk 0:00:09.3]} 50. Nf3 {[%clk
0:00:05]} 50... Bc3 {[%clk 0:00:07.9]} 51. g5+ {[%clk 0:00:04.5]} 51... Kg7
{[%clk 0:00:07.1]} 52. Kf5 {[%clk 0:00:04.2]} 52... Bb4 {[%clk 0:00:05.1]} 53.
g6 {[%clk 0:00:04.3]} 53... a4 {[%clk 0:00:04.6]} 54. Ke6 {[%clk 0:00:04.8]}
54... axb3 {[%clk 0:00:04]} 55. f5 {[%clk 0:00:05]} 55... b2 {[%clk 0:00:03.3]}
56. f6+ {[%clk 0:00:05.5]} 56... Kf8 {[%clk 0:00:02.5]} 57. Ne5 {[%clk
0:00:02.8]} 57... b1=Q {[%clk 0:00:01.7]} 58. Nd7+ {[%clk 0:00:03]} 58... Ke8
{[%clk 0:00:02.5]} 59. f7+ {[%clk 0:00:03.4]} 59... Kd8 {[%clk 0:00:02.7]} 60.
f8=Q+ {[%clk 0:00:03.7]} 60... Kc7 {[%clk 0:00:03.6]} 61. Qb8+ {[%clk
0:00:02.4]} 61... Kc6 {[%clk 0:00:04]} 62. Qd6+ {[%clk 0:00:02.4]} 62... Kb7
{[%clk 0:00:04.3]} 63. g7 {[%clk 0:00:01.6]} 63... Qe1+ {[%clk 0:00:03]} 64. Qe5
{[%clk 0:00:01.8]} 1-0

[Event "*** Titled Tuesday Blitz"]
[Site "Chess.com"]
[Date "2020.11.10"]
[Round "9"]
[White "Ave_Mariia"]
[Black "Andrii_Prydun"]
[Result "0-1"]
[WhiteElo "2502"]
[BlackElo "2380"]
[TimeControl "180+1"]
[EndTime "11:53:25 PST"]
[Termination "Andrii_Prydun won by checkmate"]

1. d4 {[%clk 0:03:00.9]} 1... d5 {[%clk 0:03:00]} 2. c4 {[%clk 0:03:00.7]} 2...
c6 {[%clk 0:03:00.3]} 3. Nf3 {[%clk 0:03:00.8]} 3... Nf6 {[%clk 0:03:00.7]} 4.
g3 {[%clk 0:03:01.2]} 4... e6 {[%clk 0:03:00.5]} 5. Bg2 {[%clk 0:03:00.7]} 5...
Nbd7 {[%clk 0:03:01.2]} 6. O-O {[%clk 0:03:00.2]} 6... Be7 {[%clk 0:03:01.9]} 7.
Nbd2 {[%clk 0:03:00.5]} 7... O-O {[%clk 0:03:02.1]} 8. Qc2 {[%clk 0:03:01]} 8...
b6 {[%clk 0:03:02.5]} 9. e4 {[%clk 0:03:00.6]} 9... Bb7 {[%clk 0:03:02]} 10. e5
{[%clk 0:02:59.9]} 10... Ne8 {[%clk 0:03:02.1]} 11. cxd5 {[%clk 0:03:00.3]}
11... cxd5 {[%clk 0:03:02.6]} 12. Re1 {[%clk 0:02:57.8]} 12... Rc8 {[%clk
0:03:02.5]} 13. Qa4 {[%clk 0:02:55.7]} 13... a5 {[%clk 0:03:01.5]} 14. Nf1
{[%clk 0:02:48.6]} 14... Nc7 {[%clk 0:02:56.8]} 15. Ne3 {[%clk 0:02:42.9]} 15...
Na6 {[%clk 0:02:34.6]} 16. Bf1 {[%clk 0:02:24.9]} 16... Nb4 {[%clk 0:02:33.8]}
17. a3 {[%clk 0:02:24.3]} 17... Nc6 {[%clk 0:02:19.1]} 18. h4 {[%clk 0:02:10.8]}
18... f6 {[%clk 0:02:00.4]} 19. Ng4 {[%clk 0:01:41.8]} 19... fxe5 {[%clk
0:01:48]} 20. Ngxe5 {[%clk 0:01:39.7]} 20... Ncxe5 {[%clk 0:01:44.9]} 21. Nxe5
{[%clk 0:01:38.3]} 21... Nxe5 {[%clk 0:01:35]} 22. Rxe5 {[%clk 0:01:38.1]} 22...
Bc6 {[%clk 0:01:06.8]} 23. Qd1 {[%clk 0:01:35.8]} 23... Bd7 {[%clk 0:01:06.4]}
24. Bh3 {[%clk 0:01:32.8]} 24... Bd6 {[%clk 0:01:05.9]} 25. Bg5 {[%clk
0:01:29.2]} 25... Qc7 {[%clk 0:01:01]} 26. Rxe6 {[%clk 0:01:25.8]} 26... Bxg3
{[%clk 0:00:58]} 27. Re7 {[%clk 0:00:57.1]} 27... Bxf2+ {[%clk 0:00:28.5]} 28.
Kh1 {[%clk 0:00:57.1]} 28... Bxh3 {[%clk 0:00:08.4]} 29. Rxc7 {[%clk 0:00:56.5]}
29... Rxc7 {[%clk 0:00:09.3]} 30. Rc1 {[%clk 0:00:41]} 30... Rcf7 {[%clk
0:00:05.9]} 31. Qd3 {[%clk 0:00:32.9]} 31... Bf5 {[%clk 0:00:06.3]} 32. Qd2
{[%clk 0:00:30.9]} 32... Be4+ {[%clk 0:00:07.2]} 33. Kh2 {[%clk 0:00:30.6]}
33... Rf3 {[%clk 0:00:07.5]} 34. Rg1 {[%clk 0:00:13.1]} 34... Bxg1+ {[%clk
0:00:07.4]} 35. Kxg1 {[%clk 0:00:14]} 35... Rf1+ {[%clk 0:00:07.8]} 36. Kh2
{[%clk 0:00:12.8]} 36... R8f2+ {[%clk 0:00:07]} 37. Kg3 {[%clk 0:00:12.8]} 37...
Rxd2 {[%clk 0:00:06.8]} 38. Bxd2 {[%clk 0:00:13.5]} 38... Rf3+ {[%clk
0:00:07.7]} 39. Kg4 {[%clk 0:00:13.8]} 39... Kf7 {[%clk 0:00:08.1]} 40. Bf4
{[%clk 0:00:14]} 40... h5+ {[%clk 0:00:06.7]} 41. Kg5 {[%clk 0:00:14.3]} 41...
g6 {[%clk 0:00:06.8]} 42. Be5 {[%clk 0:00:14.7]} 42... Bf5 {[%clk 0:00:06.6]}
43. Kh6 {[%clk 0:00:13.6]} 43... Rf2 {[%clk 0:00:06.4]} 44. Kg5 {[%clk
0:00:13.6]} 44... Rxb2 {[%clk 0:00:05.9]} 45. Kh6 {[%clk 0:00:14]} 45... Rb3
{[%clk 0:00:06]} 46. a4 {[%clk 0:00:12.7]} 46... b5 {[%clk 0:00:06]} 47. axb5
{[%clk 0:00:12.6]} 47... Rxb5 {[%clk 0:00:06.9]} 48. Kg5 {[%clk 0:00:12.6]}
48... a4 {[%clk 0:00:07.3]} 49. Kh6 {[%clk 0:00:13.5]} 49... a3 {[%clk
0:00:06.5]} 50. Kg5 {[%clk 0:00:14.3]} 50... a2 {[%clk 0:00:07.1]} 51. Kh6
{[%clk 0:00:15.2]} 51... a1=Q {[%clk 0:00:07.6]} 52. Kg5 {[%clk 0:00:16.1]}
52... Qc1+ {[%clk 0:00:08]} 53. Bf4 {[%clk 0:00:15.3]} 53... Qg1+ {[%clk
0:00:08.6]} 54. Kh6 {[%clk 0:00:14.6]} 54... Rb7 {[%clk 0:00:08.1]} 55. Bg5
{[%clk 0:00:14.3]} 55... Qxd4 {[%clk 0:00:06.7]} 56. Bc1 {[%clk 0:00:10.6]}
56... Qf6 {[%clk 0:00:05.2]} 57. Bd2 {[%clk 0:00:09.3]} 57... Qd4 {[%clk
0:00:03.6]} 58. Bc1 {[%clk 0:00:08.5]} 58... Kg8 {[%clk 0:00:03.8]} 59. Kg5
{[%clk 0:00:06.3]} 59... Qg4+ {[%clk 0:00:03.2]} 60. Kf6 {[%clk 0:00:06.6]}
60... Rf7+ {[%clk 0:00:03.7]} 61. Ke5 {[%clk 0:00:06.3]} 61... Qe4+ {[%clk
0:00:04]} 62. Kd6 {[%clk 0:00:06.7]} 62... d4 {[%clk 0:00:04.2]} 63. Bg5 {[%clk
0:00:06]} 63... Rd7+ {[%clk 0:00:04.4]} 64. Kc5 {[%clk 0:00:06.2]} 64... Qd5+
{[%clk 0:00:04.9]} 65. Kb4 {[%clk 0:00:06.5]} 65... Rb7+ {[%clk 0:00:04.9]} 66.
Ka4 {[%clk 0:00:07]} 66... Qb3+ {[%clk 0:00:03.8]} 67. Ka5 {[%clk 0:00:07.1]}
67... Qb5# {[%clk 0:00:04.3]} 0-1

[Event "*** Titled Tuesday Blitz"]
[Site "Chess.com"]
[Date "2020.11.10"]
[Round "9"]
[White "Karateloru"]
[Black "Msb2"]
[Result "1/2-1/2"]
[WhiteElo "2749"]
[BlackElo "2891"]
[TimeControl "180+1"]
[EndTime "11:53:31 PST"]
[Termination "Game drawn - insufficient material"]

1. e4 {[%clk 0:03:00.8]} 1... e6 {[%clk 0:03:00.1]} 2. d4 {[%clk 0:02:57.1]}
2... d5 {[%clk 0:03:00.7]} 3. Nd2 {[%clk 0:02:52.9]} 3... c5 {[%clk 0:03:00.5]}
4. exd5 {[%clk 0:02:51.5]} 4... Qxd5 {[%clk 0:03:01.4]} 5. Ngf3 {[%clk
0:02:49.9]} 5... cxd4 {[%clk 0:03:01.7]} 6. Bc4 {[%clk 0:02:50.4]} 6... Qd6
{[%clk 0:03:02.2]} 7. O-O {[%clk 0:02:49.2]} 7... Nf6 {[%clk 0:03:02.8]} 8. Nb3
{[%clk 0:02:48.9]} 8... Nc6 {[%clk 0:03:03.4]} 9. Nbxd4 {[%clk 0:02:48.9]} 9...
Nxd4 {[%clk 0:03:04.3]} 10. Qxd4 {[%clk 0:02:48.5]} 10... Qxd4 {[%clk
0:03:04.6]} 11. Nxd4 {[%clk 0:02:49.4]} 11... Bd7 {[%clk 0:03:05.5]} 12. c3
{[%clk 0:02:49.5]} 12... Rc8 {[%clk 0:03:03.7]} 13. Bb3 {[%clk 0:02:48.4]} 13...
Bc5 {[%clk 0:03:04.2]} 14. Rd1 {[%clk 0:02:38.7]} 14... O-O {[%clk 0:03:03]} 15.
h3 {[%clk 0:02:37.9]} 15... Rfd8 {[%clk 0:03:02.8]} 16. Be3 {[%clk 0:02:37.9]}
16... Kf8 {[%clk 0:02:51]} 17. Nc2 {[%clk 0:02:29.4]} 17... Bxe3 {[%clk
0:02:43.5]} 18. Nxe3 {[%clk 0:02:30.3]} 18... Ke7 {[%clk 0:02:43]} 19. Rd4
{[%clk 0:02:27.6]} 19... Bc6 {[%clk 0:02:41.4]} 20. Rad1 {[%clk 0:02:26.9]}
20... Rxd4 {[%clk 0:02:41.5]} 21. Rxd4 {[%clk 0:02:27.8]} 21... Rd8 {[%clk
0:02:42]} 22. Rxd8 {[%clk 0:02:27.9]} 22... Kxd8 {[%clk 0:02:42.9]} 23. f3
{[%clk 0:02:28.3]} 23... g6 {[%clk 0:02:42.5]} 24. Kf2 {[%clk 0:02:28.3]} 24...
Ke7 {[%clk 0:02:42.7]} 25. Bc4 {[%clk 0:02:17.7]} 25... e5 {[%clk 0:02:38.1]}
26. Ng4 {[%clk 0:02:10.5]} 26... Nd7 {[%clk 0:02:37.1]} 27. Ke3 {[%clk 0:02:03]}
27... f5 {[%clk 0:02:32]} 28. Nf2 {[%clk 0:01:58.7]} 28... g5 {[%clk 0:02:32.3]}
29. Bd3 {[%clk 0:01:52.8]} 29... f4+ {[%clk 0:02:20.9]} 30. Kd2 {[%clk 0:01:50]}
30... Nf6 {[%clk 0:02:19.5]} 31. Ng4 {[%clk 0:01:47.9]} 31... e4 {[%clk
0:01:41.3]} 32. Nxf6 {[%clk 0:01:44.7]} 32... Kxf6 {[%clk 0:01:38.4]} 33. Bxe4
{[%clk 0:01:44.3]} 33... Bxe4 {[%clk 0:01:38.6]} 34. fxe4 {[%clk 0:01:44.5]}
34... Ke5 {[%clk 0:01:39.5]} 35. Kd3 {[%clk 0:01:44.8]} 35... h5 {[%clk
0:01:39.2]} 36. a4 {[%clk 0:01:38.8]} 36... g4 {[%clk 0:01:21.7]} 37. hxg4
{[%clk 0:01:39.7]} 37... hxg4 {[%clk 0:01:22.6]} 38. a5 {[%clk 0:01:23.4]} 38...
a6 {[%clk 0:00:52]} 39. b4 {[%clk 0:01:18.6]} 39... g3 {[%clk 0:00:34.3]} 40.
Ke2 {[%clk 0:01:18]} 40... Kxe4 {[%clk 0:00:34.9]} 41. c4 {[%clk 0:01:16.1]}
41... Kd4 {[%clk 0:00:32.3]} 42. b5 {[%clk 0:00:48.8]} 42... Kxc4 {[%clk
0:00:26.8]} 43. bxa6 {[%clk 0:00:49.7]} 43... bxa6 {[%clk 0:00:27.7]} 44. Kf3
{[%clk 0:00:50.3]} 44... Kb5 {[%clk 0:00:28.3]} 45. Kxf4 {[%clk 0:00:50.9]}
45... Kxa5 {[%clk 0:00:29]} 46. Kxg3 {[%clk 0:00:51.6]} 46... Kb4 {[%clk
0:00:29.3]} 47. Kf4 {[%clk 0:00:52]} 47... a5 {[%clk 0:00:29.8]} 48. g4 {[%clk
0:00:52.4]} 48... a4 {[%clk 0:00:30.5]} 49. g5 {[%clk 0:00:52.6]} 49... a3
{[%clk 0:00:31.4]} 50. g6 {[%clk 0:00:51.3]} 50... a2 {[%clk 0:00:32]} 51. g7
{[%clk 0:00:51.6]} 51... a1=Q {[%clk 0:00:32.9]} 52. g8=Q {[%clk 0:00:51.9]}
52... Qf1+ {[%clk 0:00:33.6]} 53. Ke5 {[%clk 0:00:51.6]} 53... Qe2+ {[%clk
0:00:33.9]} 54. Kf6 {[%clk 0:00:51.7]} 54... Qf3+ {[%clk 0:00:33.9]} 55. Kg7
{[%clk 0:00:51.7]} 55... Qg4+ {[%clk 0:00:34.3]} 56. Kf8 {[%clk 0:00:52]} 56...
Qc8+ {[%clk 0:00:34.3]} 57. Kg7 {[%clk 0:00:51.8]} 57... Qc3+ {[%clk 0:00:35]}
58. Kf8 {[%clk 0:00:51.7]} 58... Qc5+ {[%clk 0:00:35.3]} 59. Kg7 {[%clk
0:00:51.9]} 59... Qd4+ {[%clk 0:00:35.8]} 60. Kf8 {[%clk 0:00:52.1]} 60... Kc5
{[%clk 0:00:36]} 61. Qg5+ {[%clk 0:00:50.7]} 61... Kc6 {[%clk 0:00:36.3]} 62.
Kf7 {[%clk 0:00:48.5]} 62... Qd7+ {[%clk 0:00:34.9]} 63. Qe7 {[%clk 0:00:48.2]}
63... Qd1 {[%clk 0:00:33.9]} 64. Qe6+ {[%clk 0:00:48]} 64... Kc7 {[%clk
0:00:34.5]} 65. Qe7+ {[%clk 0:00:48]} 65... Kc6 {[%clk 0:00:35.1]} 66. Qe6+
{[%clk 0:00:48]} 66... Kc7 {[%clk 0:00:35.7]} 67. Qe7+ {[%clk 0:00:48.2]} 67...
Kb6 {[%clk 0:00:36.1]} 68. Qe6+ {[%clk 0:00:48]} 68... Ka5 {[%clk 0:00:36.3]}
69. Qf6 {[%clk 0:00:47.7]} 69... Qd5+ {[%clk 0:00:35.6]} 70. Qe6 {[%clk
0:00:47.7]} 70... Qh5+ {[%clk 0:00:36.2]} 71. Qg6 {[%clk 0:00:47.6]} 71... Qf3+
{[%clk 0:00:35.3]} 72. Qf6 {[%clk 0:00:47.6]} 72... Qb7+ {[%clk 0:00:35]} 73.
Qe7 {[%clk 0:00:47.5]} 73... Qb3+ {[%clk 0:00:34.7]} 74. Qe6 {[%clk 0:00:47.6]}
74... Qc3 {[%clk 0:00:35.1]} 75. Qf6 {[%clk 0:00:47.3]} 75... Qc7+ {[%clk
0:00:34.6]} 76. Qe7 {[%clk 0:00:47.4]} 76... Qf4+ {[%clk 0:00:34.2]} 77. Qf6
{[%clk 0:00:47.5]} 77... Qc4+ {[%clk 0:00:35.1]} 78. Qe6 {[%clk 0:00:47.5]}
78... Qc7+ {[%clk 0:00:35.2]} 79. Qe7 {[%clk 0:00:47.7]} 79... Qc8 {[%clk
0:00:35.8]} 80. Kf6 {[%clk 0:00:47]} 80... Kb5 {[%clk 0:00:34.8]} 81. Qe5+
{[%clk 0:00:46.1]} 81... Kb4 {[%clk 0:00:35.1]} 82. Qd6+ {[%clk 0:00:46]} 82...
Ka4 {[%clk 0:00:35.7]} 83. Qe5 {[%clk 0:00:45.5]} 83... Qh8+ {[%clk 0:00:35.2]}
84. Ke6 {[%clk 0:00:45.3]} 84... Qe8+ {[%clk 0:00:35.5]} 85. Kd6 {[%clk
0:00:45.2]} 85... Qd8+ {[%clk 0:00:35.8]} 86. Ke6 {[%clk 0:00:45.5]} 86... Qc8+
{[%clk 0:00:34.7]} 87. Kd6 {[%clk 0:00:45.3]} 87... Ka3 {[%clk 0:00:34]} 88.
Qc5+ {[%clk 0:00:44.4]} 88... Qxc5+ {[%clk 0:00:33.6]} 89. Kxc5 {[%clk
0:00:45.3]} 1/2-1/2

[Event "*** Titled Tuesday Blitz"]
[Site "Chess.com"]
[Date "2020.11.10"]
[Round "9"]
[White "Chigorinetz"]
[Black "Vuk2000"]
[Result "0-1"]
[WhiteElo "2559"]
[BlackElo "2693"]
[TimeControl "180+1"]
[EndTime "11:54:03 PST"]
[Termination "Vuk2000 won on time"]

1. e4 {[%clk 0:03:00.9]} 1... e6 {[%clk 0:03:00.2]} 2. d4 {[%clk 0:03:00.6]}
2... d5 {[%clk 0:03:00.9]} 3. e5 {[%clk 0:03:01]} 3... c5 {[%clk 0:03:00.9]} 4.
Qg4 {[%clk 0:03:01.4]} 4... cxd4 {[%clk 0:02:58.8]} 5. Nf3 {[%clk 0:03:01.6]}
5... Nc6 {[%clk 0:02:58.9]} 6. Bd3 {[%clk 0:03:01.8]} 6... Nge7 {[%clk
0:02:53.3]} 7. h4 {[%clk 0:03:01.3]} 7... Nf5 {[%clk 0:02:49.1]} 8. h5 {[%clk
0:02:46.8]} 8... h6 {[%clk 0:02:26.9]} 9. a3 {[%clk 0:02:46.3]} 9... Bd7 {[%clk
0:02:14.7]} 10. b4 {[%clk 0:02:41.1]} 10... Qb6 {[%clk 0:02:03.8]} 11. O-O
{[%clk 0:02:35.7]} 11... Nce7 {[%clk 0:01:32.2]} 12. a4 {[%clk 0:02:29.3]} 12...
Qxb4 {[%clk 0:01:30.1]} 13. Ba3 {[%clk 0:02:23.6]} 13... Qxa4 {[%clk 0:00:52.6]}
14. Nbd2 {[%clk 0:02:23.3]} 14... Qc6 {[%clk 0:00:51.7]} 15. Nb3 {[%clk
0:02:20.3]} 15... Qc7 {[%clk 0:00:47.6]} 16. Rfc1 {[%clk 0:02:10.5]} 16... g5
{[%clk 0:00:40]} 17. hxg6 {[%clk 0:02:08.1]} 17... Nxg6 {[%clk 0:00:38.3]} 18.
Bxf5 {[%clk 0:01:49.7]} 18... exf5 {[%clk 0:00:36.6]} 19. Qxd4 {[%clk
0:01:49.7]} 19... Be6 {[%clk 0:00:31]} 20. Bxf8 {[%clk 0:01:36.3]} 20... Kxf8
{[%clk 0:00:30]} 21. Rxa7 {[%clk 0:01:35.7]} 21... Kg7 {[%clk 0:00:28]} 22. Nbd2
{[%clk 0:01:07.8]} 22... Rxa7 {[%clk 0:00:21.5]} 23. Qxa7 {[%clk 0:01:07.7]}
23... Rc8 {[%clk 0:00:22.2]} 24. Rb1 {[%clk 0:00:59]} 24... Qxc2 {[%clk
0:00:21.4]} 25. Qxb7 {[%clk 0:00:52]} 25... Rc7 {[%clk 0:00:13.1]} 26. Qb8
{[%clk 0:00:50.2]} 26... Rc8 {[%clk 0:00:12.8]} 27. Qb4 {[%clk 0:00:49.8]} 27...
Qc3 {[%clk 0:00:12.5]} 28. Qb7 {[%clk 0:00:49.8]} 28... Rc7 {[%clk 0:00:11.9]}
29. Qb8 {[%clk 0:00:49.6]} 29... Rc8 {[%clk 0:00:11.9]} 30. Qd6 {[%clk
0:00:48.9]} 30... Qc7 {[%clk 0:00:11]} 31. Qa6 {[%clk 0:00:47.9]} 31... Rb8
{[%clk 0:00:10.5]} 32. Re1 {[%clk 0:00:46]} 32... Rb2 {[%clk 0:00:10.1]} 33. Qd3
{[%clk 0:00:44]} 33... Qc5 {[%clk 0:00:08.9]} 34. Nd4 {[%clk 0:00:39.5]} 34...
Qc8 {[%clk 0:00:07.8]} 35. N2f3 {[%clk 0:00:37.5]} 35... Rb4 {[%clk 0:00:07.1]}
36. Ra1 {[%clk 0:00:35]} 36... Nf4 {[%clk 0:00:06.6]} 37. Qd2 {[%clk 0:00:31.6]}
37... Rxd4 {[%clk 0:00:04]} 38. Nxd4 {[%clk 0:00:29.8]} 38... Ng6 {[%clk
0:00:04.7]} 39. Ra7 {[%clk 0:00:23.7]} 39... Nxe5 {[%clk 0:00:03.7]} 40. Qb2
{[%clk 0:00:20.3]} 40... Kf6 {[%clk 0:00:01.9]} 41. Ne2 {[%clk 0:00:19.6]} 41...
Qc4 {[%clk 0:00:01.5]} 42. f4 {[%clk 0:00:17.1]} 42... Qc5+ {[%clk 0:00:01.8]}
43. Qd4 {[%clk 0:00:16.5]} 43... Qxd4+ {[%clk 0:00:02.4]} 44. Nxd4 {[%clk
0:00:16.4]} 44... Ng6 {[%clk 0:00:03.1]} 45. g3 {[%clk 0:00:16]} 45... h5 {[%clk
0:00:03.7]} 46. Kf2 {[%clk 0:00:15.9]} 46... h4 {[%clk 0:00:04.1]} 47. Ra6
{[%clk 0:00:15.9]} 47... hxg3+ {[%clk 0:00:04]} 48. Kxg3 {[%clk 0:00:16.2]}
48... Nf8 {[%clk 0:00:04.7]} 49. Kf3 {[%clk 0:00:14.5]} 49... Nd7 {[%clk
0:00:04.6]} 50. Ke3 {[%clk 0:00:14.3]} 50... Nc5 {[%clk 0:00:04.7]} 51. Rb6
{[%clk 0:00:14.4]} 51... Ne4 {[%clk 0:00:05]} 52. Nf3 {[%clk 0:00:13.8]} 52...
Nc3 {[%clk 0:00:04.8]} 53. Ra6 {[%clk 0:00:11.6]} 53... Ne4 {[%clk 0:00:04.9]}
54. Kd4 {[%clk 0:00:11.8]} 54... Ng3 {[%clk 0:00:05.1]} 55. Ne5 {[%clk 0:00:10]}
55... Ne2+ {[%clk 0:00:04.7]} 56. Ke3 {[%clk 0:00:10.2]} 56... Ng3 {[%clk
0:00:04.9]} 57. Nd7+ {[%clk 0:00:10]} 57... Ke7 {[%clk 0:00:05.2]} 58. Nc5
{[%clk 0:00:09.9]} 58... Kf6 {[%clk 0:00:05.3]} 59. Nd3 {[%clk 0:00:08.7]} 59...
Kg6 {[%clk 0:00:03.7]} 60. Kd4 {[%clk 0:00:08.5]} 60... Kf6 {[%clk 0:00:03.3]}
61. Rb6 {[%clk 0:00:08.2]} 61... Ne2+ {[%clk 0:00:03.4]} 62. Kc5 {[%clk
0:00:08.2]} 62... Nc3 {[%clk 0:00:02.7]} 63. Kd4 {[%clk 0:00:07.5]} 63... Ne4
{[%clk 0:00:03.1]} 64. Ra6 {[%clk 0:00:07]} 64... Ng3 {[%clk 0:00:03.5]} 65. Nc5
{[%clk 0:00:06.6]} 65... Ne2+ {[%clk 0:00:02.7]} 66. Ke3 {[%clk 0:00:06.9]}
66... Nc3 {[%clk 0:00:03.4]} 67. Nd3 {[%clk 0:00:06.5]} 67... Nb5 {[%clk
0:00:03.4]} 68. Rb6 {[%clk 0:00:06]} 68... Nc3 {[%clk 0:00:03.5]} 69. Kd4 {[%clk
0:00:06]} 69... Ne4 {[%clk 0:00:03.1]} 70. Ra6 {[%clk 0:00:05.2]} 70... Ke7
{[%clk 0:00:03.2]} 71. Nb4 {[%clk 0:00:05.1]} 71... Nd2 {[%clk 0:00:03]} 72.
Nxd5+ {[%clk 0:00:04.9]} 72... Kf8 {[%clk 0:00:02.7]} 73. Ne3 {[%clk 0:00:02.6]}
73... Kg7 {[%clk 0:00:02.1]} 74. Ke5 {[%clk 0:00:02.8]} 74... Nf3+ {[%clk
0:00:02.3]} 75. Kd6 {[%clk 0:00:03.1]} 75... Nh4 {[%clk 0:00:02.5]} 76. Ra5
{[%clk 0:00:03.2]} 76... Kf6 {[%clk 0:00:02.4]} 77. Ra1 {[%clk 0:00:03.1]} 77...
Ng6 {[%clk 0:00:03]} 78. Ra4 {[%clk 0:00:01.9]} 78... Ne7 {[%clk 0:00:02.3]} 0-1